fUSD/lending_fUSD_20260417
["ID","MTS","AMOUNT","RATE_DAILY","PERIOD"]
[420645173,1776414635925,-345.837214,8.568e-05,2]
[420645174,1776414635934,-198.99801,8.568e-05,2]
[420645175,1776414635945,-8875.15101988,8.599e-05,2]
[420645176,1776414635954,-1450.1,8.618e-05,2]
[420645177,1776414635964,-9999.99,8.618e-05,2]
[420645178,1776414635974,-999.99,8.618e-05,2]
[420645179,1776414635984,-9999.99,8.618e-05,2]
[420645180,1776414635994,-150.99,8.618e-05,2]
[420645181,1776414636004,-986.41230636,8.618e-05,2]
[420645182,1776414636013,-150.0,8.641e-05,2]
[420645183,1776414636023,-150.0,8.641e-05,2]
[420645184,1776414636033,-400.0,8.678e-05,7]
[420645185,1776414636043,-500.0,8.743e-05,2]
[420645186,1776414636052,-316.47,8.751e-05,7]
[420645187,1776414636062,-41624.12612046,8.758e-05,2]
[420645188,1776414636072,-1600.0,8.76e-05,2]
[420645189,1776414636082,-154.7246712,8.765e-05,2]
[420645190,1776414636091,-1000.0,8.767e-05,2]
[420645191,1776414636101,-2378.99031299,8.767e-05,2]
[420645192,1776414636111,-1037.43324883,8.767e-05,3]
[420645193,1776414636121,-151.0,8.768e-05,2]
[420645194,1776414636130,-152.040932,8.768e-05,2]
[420645195,1776414636140,-62693.3611336,8.768e-05,2]
[420645196,1776414636150,-500.0,8.768e-05,2]
[420645197,1776414636160,-150.0,8.793e-05,2]
[420645198,1776414636170,-150.0,8.793e-05,2]
[420645199,1776414636180,-150.0,8.82e-05,2]
[420645200,1776414636189,-249.65,8.835e-05,2]
[420645201,1776414636199,-500.0,8.842e-05,2]
[420645202,1776414636208,-724.4,8.842e-05,2]
[420645203,1776414636218,-958.0,8.856e-05,5]
[420645204,1776414636229,-377.47755807,8.857e-05,2]
[420645205,1776414636238,-3835.00731635,8.867e-05,2]
[420645206,1776414636248,-450.0,8.867e-05,2]
[420645207,1776414636258,-201.00444872,8.867e-05,2]
[420645208,1776414636273,-29629.56515158,8.868e-05,2]
[420645209,1776414636291,-61381.05759508,8.868e-05,2]
[420645210,1776414636304,-19868.79047114,8.868e-05,2]
[420645211,1776414636315,-5396.0117804,8.868e-05,2]
[420645212,1776414636324,-151.0,8.868e-05,2]
[420645213,1776414636334,-150.0,8.868e-05,2]
[420645214,1776414636345,-150.0,8.868e-05,2]
[420645215,1776414636355,-6534.05,8.877e-05,2]
[420645216,1776414636366,-1182.478901,8.877e-05,2]
[420645217,1776414636376,-1182.478901,8.877e-05,2]
[420645218,1776414636387,-1182.478901,8.877e-05,2]
[420645219,1776414636397,-1182.478901,8.877e-05,2]
[420645220,1776414636406,-151.0,8.877e-05,2]
[420645221,1776414636416,-151.0,8.877e-05,2]
[420645222,1776414636426,-151.0,8.877e-05,2]
[420645223,1776414636435,-764.950203,8.877e-05,2]
[420645224,1776414636445,-764.950203,8.877e-05,2]
[420645225,1776414636455,-764.950203,8.877e-05,2]
[420645226,1776414636465,-764.950203,8.877e-05,2]
[420645227,1776414636475,-758.0,8.899e-05,5]
[420645228,1776414636485,-2851.3,8.9e-05,3]
[420645229,1776414636494,-1300.0,8.9e-05,3]
[420645230,1776414636504,-199.0,8.944e-05,3]
[420645231,1776414636514,-200.0,8.964e-05,2]
[420645232,1776414636523,-200.0,8.964e-05,2]
[420645233,1776414636533,-200.0,8.964e-05,2]
[420645234,1776414636543,-200.0,8.964e-05,2]
[420645235,1776414636552,-200.0,8.964e-05,2]
[420645236,1776414636562,-200.0,8.964e-05,2]
[420645237,1776414636571,-200.0,8.964e-05,2]
[420645238,1776414636581,-200.0,8.964e-05,2]
[420645239,1776414636591,-200.0,8.964e-05,2]
[420645240,1776414636601,-200.0,8.964e-05,2]
[420645241,1776414636611,-200.0,8.964e-05,2]
[420645242,1776414636621,-200.0,8.964e-05,2]
[420645243,1776414636631,-200.0,8.964e-05,2]
[420645244,1776414636641,-200.0,8.964e-05,2]
[420645245,1776414636651,-200.0,8.964e-05,2]
[420645246,1776414636666,-200.0,8.964e-05,2]
[420645247,1776414636676,-200.0,8.964e-05,2]
[420645248,1776414636686,-200.0,8.964e-05,2]
[420645249,1776414636696,-200.0,8.964e-05,2]
[420645250,1776414636707,-200.0,8.964e-05,2]
[420645251,1776414636718,-1046.52857164,8.999e-05,3]
[420645252,1776414636728,-156.367,8.999e-05,2]
[420645253,1776414636738,-500.34379561,9e-05,2]
[420645254,1776414636748,-3841.86329342,9e-05,2]
[420645255,1776414636761,-2325.37922241,9e-05,2]
[420645256,1776414636771,-5000.0,9e-05,2]
[420645257,1776414636780,-5000.0,9e-05,2]
[420645258,1776414636790,-5000.0,9e-05,2]
[420645259,1776414636800,-5000.0,9e-05,2]
[420645260,1776414636810,-2600.0,9e-05,3]
[420645261,1776414636820,-161.0,9e-05,3]
[420645262,1776414636831,-251.11,9.012e-05,2]
[420645263,1776414636840,-166.66,9.033e-05,2]
[420645264,1776414636851,-150.0,9.036e-05,2]
[420645265,1776414636861,-250.0,9.041e-05,2]
[420645266,1776414636871,-166.0,9.068e-05,2]
[420645267,1776414636881,-6956.0,9.068e-05,2]
[420645268,1776414636894,-300.0,9.068e-05,2]
[420645269,1776414636904,-356.64372369,9.073e-05,2]
[420645270,1776414636915,-500.0,9.073e-05,2]
[420645271,1776414636925,-155.825,9.086e-05,2]
[420645272,1776414636936,-823.18330102,9.091e-05,2]
[420645273,1776414636946,-1001.3372433,9.091e-05,2]
[420645274,1776414636956,-1000.0,9.091e-05,2]
[420645275,1776414636966,-1000.0,9.091e-05,2]
[420645276,1776414636976,-150.0,9.096e-05,2]
[420645277,1776414636986,-155.10029279,9.096e-05,2]
[420645278,1776414636997,-153.88149916,9.096e-05,2]
[420645279,1776414637007,-150.0,9.096e-05,2]
[420645280,1776414637019,-445.41185021,9.098e-05,2]
[420645281,1776414637030,-1082.55800671,9.099e-05,2]
[420645282,1776414637041,-200.0,9.099e-05,2]
[420645283,1776414637051,-1037.43324884,9.099e-05,3]
[420645284,1776414637062,-150.0,9.099e-05,2]
[420645285,1776414637075,-250.0,9.099e-05,2]
[420645286,1776414637085,-21639.12014574,9.1e-05,2]
[420645289,1776414639107,-1000.0,8.467e-05,2]
[420645290,1776414639117,-52164.66073498,9.1e-05,2]
[420645291,1776414639129,-42357.35242812,9.1e-05,2]
[420645296,1776414640605,-2742.37269276,9.1e-05,2]
[420645297,1776414640877,-400.0,8.548e-05,7]
[420645298,1776414640887,-346.87532764,8.867e-05,2]
[420645299,1776414640897,-7.1434102,8.867e-05,2]
[420645300,1776414641147,-492.8565898,8.867e-05,2]
[420645301,1776414641158,-61.74105222,9.1e-05,2]
[420645302,1776414641169,-875.50000001,9.1e-05,2]
[420645303,1776414641181,-2325.16311404,9.1e-05,2]
[420645304,1776414641193,-4478.34373383,9.1e-05,2]
[420645326,1776414645297,-362.8,8.548e-05,7]
[420645327,1776414645307,-234.9,8.622e-05,7]
[420645328,1776414645316,-500.0,8.757e-05,2]
[420645329,1776414645325,-181.76305584,8.757e-05,2]
[420645330,1776414645334,-500.0,8.757e-05,2]
[420645331,1776414645343,-500.0,8.757e-05,2]
[420645332,1776414645352,-500.0,8.757e-05,2]
[420645333,1776414645361,-500.0,8.757e-05,2]
[420645334,1776414645374,-500.0,8.757e-05,2]
[420645335,1776414645383,-500.0,8.757e-05,2]
[420645336,1776414645392,-500.0,8.757e-05,2]
[420645337,1776414645401,-500.0,8.757e-05,2]
[420645338,1776414645410,-410.96803099,8.757e-05,2]
[420645339,1776414645627,-89.03196901,8.757e-05,2]
[420645340,1776414645637,-500.0,8.757e-05,2]
[420645341,1776414645646,-500.0,8.757e-05,2]
[420645342,1776414645655,-354.98344543,8.757e-05,2]
[420645343,1776414645667,-145.01655457,8.757e-05,2]
[420645344,1776414645676,-500.0,8.757e-05,2]
[420645345,1776414645685,-289.95834398,8.757e-05,2]
[420645346,1776414645794,-210.04165602,8.757e-05,2]
[420645347,1776414645803,-500.0,8.757e-05,2]
[420645348,1776414645813,-211.65154107,8.757e-05,2]
[420645349,1776414645824,-288.34845893,8.757e-05,2]
[420645350,1776414645834,-500.0,8.757e-05,2]
[420645351,1776414645843,-500.0,8.757e-05,2]
[420645352,1776414645853,-500.0,8.757e-05,2]
[420645353,1776414645863,-500.0,8.757e-05,2]
[420645354,1776414645872,-500.0,8.757e-05,2]
[420645355,1776414645882,-500.0,8.757e-05,2]
[420645356,1776414645891,-500.0,8.757e-05,2]
[420645357,1776414645900,-500.0,8.757e-05,2]
[420645358,1776414645910,-500.0,8.757e-05,2]
[420645359,1776414645920,-500.0,8.757e-05,2]
[420645360,1776414645929,-500.0,8.757e-05,2]
[420645361,1776414645938,-500.0,8.757e-05,2]
[420645362,1776414645947,-500.0,8.757e-05,2]
[420645363,1776414645957,-500.0,8.757e-05,2]
[420645364,1776414645967,-500.0,8.757e-05,2]
[420645365,1776414645976,-500.0,8.757e-05,2]
[420645366,1776414645985,-500.0,8.757e-05,2]
[420645367,1776414645995,-500.0,8.757e-05,2]
[420645368,1776414646006,-500.0,8.757e-05,2]
[420645369,1776414646015,-500.0,8.757e-05,2]
[420645370,1776414646025,-500.0,8.757e-05,2]
[420645371,1776414646034,-413.77988907,8.757e-05,2]
[420645372,1776414646045,-500.0,8.757e-05,2]
[420645373,1776414646054,-500.0,8.757e-05,2]
[420645374,1776414646064,-500.0,8.757e-05,2]
[420645375,1776414646074,-500.0,8.757e-05,2]
[420645376,1776414646083,-500.0,8.757e-05,2]
[420645377,1776414646092,-15225.09097643,9.1e-05,2]
[420645410,1776414647458,-2500.0,8.518e-05,2]
[420645411,1776414647468,-500.0,8.757e-05,2]
[420645412,1776414647478,-500.0,8.757e-05,2]
[420645413,1776414647488,-238.40000069,8.757e-05,2]
[420645414,1776414647502,-261.59999931,8.757e-05,2]
[420645415,1776414647511,-500.0,8.757e-05,2]
[420645416,1776414647521,-86.32999869,8.757e-05,2]
[420645417,1776414647532,-413.67000131,8.757e-05,2]
[420645418,1776414647542,-500.0,8.757e-05,2]
[420645419,1776414647551,-500.0,8.757e-05,2]
[420645420,1776414647561,-347.75095567,8.757e-05,2]
[420645421,1776414647572,-152.24904433,8.757e-05,2]
[420645422,1776414647582,-12278.46361167,9.1e-05,2]
[420645423,1776414647593,-1137.04934883,9.1e-05,2]
[420645424,1776414647605,-1065.32192759,9.1e-05,2]
[420645425,1776414647616,-46023.99817403,9.1e-05,2]
[420645426,1776414647662,-1490.2616,9.1e-05,2]
[420645427,1776414648194,-6181.99337938,9.1e-05,2]
[420645429,1776414812587,150.0,8.22e-05,2]
[420645430,1776414833664,165.85,8.295e-05,2]
[420645431,1776414844519,-207.14845645,8.327e-05,2]
[420645433,1776415174768,2000.0,8.219e-05,2]
[420645434,1776415187067,288.0,8.219e-05,2]
[420645435,1776415187542,-300.0,8.326e-05,2]
[420645436,1776415187565,-258.0,8.326e-05,2]
[420645437,1776415187589,-300.0,8.326e-05,2]
[420645439,1776415248875,1500.0,7.888e-05,2]
[420645440,1776415250692,165.23,8.22e-05,2]
[420645441,1776415264351,8334.78,7.915e-05,2]
[420645442,1776415264375,2806.24,7.915e-05,2]
[420645455,1776415356405,166.82,8.073e-05,2]
[420645456,1776415503597,150.0,8.22e-05,2]
[420645457,1776415506703,150.0,8.186e-05,2]
[420645458,1776415509588,150.0,8.186e-05,2]
[420645459,1776415514284,290.56888095,8.186e-05,2]
[420645460,1776415515217,153.927072,8.186e-05,2]
[420645461,1776415525688,151.59326321,8.186e-05,2]
[420645462,1776415525787,150.0,8.186e-05,2]
[420645464,1776415560951,8803.92078384,7.663e-05,2]
[420645465,1776415560976,8573.61921616,7.663e-05,2]
[420645466,1776415574761,-300.0,8.326e-05,2]
[420645467,1776415574784,-700.0,8.326e-05,2]
[420645468,1776415577093,-500.0,8.326e-05,2]
[420645469,1776415577115,-500.0,8.327e-05,2]
[420645470,1776415577421,-1000.0,8.327e-05,2]
[420645471,1776415577838,-1000.0,8.327e-05,2]
[420645472,1776415578433,-1000.0,8.327e-05,2]
[420645473,1776415578723,-1000.0,8.327e-05,2]
[420645474,1776415579057,-468.81315091,8.327e-05,2]
[420645475,1776415579080,-250.0,8.327e-05,2]
[420645476,1776415579103,-179.0,8.327e-05,3]
[420645477,1776415579124,-0.17154355,8.327e-05,2]
[420645478,1776415579147,-102.01530554,8.358e-05,2]
[420645479,1776415579382,-146.76469446,8.358e-05,2]
[420645480,1776415579407,-853.23530554,8.363e-05,2]
[420645481,1776415579727,-87.23529446,8.363e-05,2]
[420645482,1776415579751,-290.25,8.39e-05,2]
[420645483,1776415579772,-580.53,8.422e-05,2]
[420645484,1776415579794,-41.98470554,8.422e-05,2]
[420645485,1776415580035,-289.73529446,8.422e-05,2]
[420645486,1776415580057,-710.26470554,8.438e-05,2]
[420645487,1776415580428,-133.90051502,8.438e-05,2]
[420645488,1776415580451,-866.09948498,8.439e-05,2]
[420645489,1776415580849,-1000.0,8.439e-05,2]
[420645490,1776415581201,-1000.0,8.439e-05,2]
[420645491,1776415581550,-1000.0,8.439e-05,2]
[420645492,1776415582035,-1000.0,8.439e-05,2]
[420645493,1776415582352,-1000.0,8.439e-05,2]
[420645494,1776415582681,-1000.0,8.439e-05,2]
[420645495,1776415584498,-1000.0,8.439e-05,2]
[420645496,1776415584550,-1000.0,8.439e-05,2]
[420645497,1776415584596,-1000.0,8.439e-05,2]
[420645498,1776415584682,-1000.0,8.439e-05,2]
[420645499,1776415585184,-1000.0,8.439e-05,2]
[420645500,1776415585230,-1000.0,8.439e-05,2]
[420645501,1776415585255,-1000.0,8.439e-05,2]
[420645502,1776415585467,-1000.0,8.439e-05,2]
[420645503,1776415586886,-1000.0,8.439e-05,2]
[420645504,1776415587224,-1000.0,8.439e-05,2]
[420645505,1776415587669,-1000.0,8.439e-05,2]
[420645506,1776415588020,-1000.0,8.439e-05,2]
[420645507,1776415588368,-1000.0,8.439e-05,2]
[420645508,1776415588686,-1000.0,8.439e-05,2]
[420645509,1776415590835,-1000.0,8.439e-05,2]
[420645510,1776415591256,-1000.0,8.439e-05,2]
[420645511,1776415592483,-1000.0,8.439e-05,2]
[420645512,1776415593529,-1000.0,8.439e-05,2]
[420645513,1776415606221,-182.77,8.311e-05,2]
[420645514,1776415606245,-228.46,8.348e-05,2]
[420645515,1776415606267,-274.15,8.385e-05,2]
[420645516,1776415606291,-314.62,8.422e-05,2]
[420645517,1776415608819,-279.4,8.422e-05,2]
[420645518,1776415608843,-720.6,8.439e-05,2]
[420645519,1776415609092,-1000.0,8.439e-05,2]
[420645520,1776415610047,-1000.0,8.439e-05,2]
[420645521,1776415611033,-1000.0,8.439e-05,2]
[420645522,1776415612043,-1000.0,8.439e-05,2]
[420645523,1776415613051,-1000.0,8.439e-05,2]
[420645524,1776415613953,-941.39051502,8.439e-05,2]
[420645525,1776415613977,-58.60948498,8.442e-05,2]
[420645526,1776415615175,-91.39051502,8.442e-05,2]
[420645527,1776415615199,-908.60948498,8.443e-05,2]
[420645528,1776415616154,-1000.0,8.443e-05,2]
[420645529,1776415617170,-1000.0,8.443e-05,2]
[420645530,1776415618359,-1000.0,8.443e-05,2]
[420645531,1776415620493,-1000.0,8.443e-05,2]
[420645532,1776415622699,-1000.0,8.443e-05,2]
[420645533,1776415622883,-79.55051502,8.443e-05,2]
[420645534,1776415622907,-151.0,8.46e-05,2]
[420645535,1776415622929,-150.99,8.461e-05,2]
[420645536,1776415622952,-299.99,8.461e-05,2]
[420645537,1776415622976,-300.0,8.461e-05,2]
[420645538,1776415623001,-18.46948498,8.462e-05,2]
[420645539,1776415623662,-501.68051502,8.462e-05,2]
[420645540,1776415623690,-498.31948498,8.462e-05,2]
[420645541,1776415624872,-286.63094339,8.451e-05,2]
[420645542,1776415624898,-1.68051502,8.462e-05,2]
[420645543,1776415624925,-500.0,8.462e-05,2]
[420645544,1776415624951,-211.68854159,8.462e-05,2]
[420645545,1776415625885,-288.31145841,8.462e-05,2]
[420645546,1776415625913,-500.0,8.462e-05,2]
[420645547,1776415625941,-211.68854159,8.462e-05,2]
[420645548,1776415627252,-171.0,8.443e-05,3]
[420645549,1776415627278,-250.0,8.457e-05,2]
[420645550,1776415627306,-38.31145841,8.462e-05,2]
[420645551,1776415627335,-500.0,8.462e-05,2]
[420645552,1776415627363,-40.68854159,8.462e-05,2]
[420645553,1776415628327,-459.31145841,8.462e-05,2]
[420645554,1776415628355,-500.0,8.462e-05,2]
[420645555,1776415628383,-40.68854159,8.462e-05,2]
[420645556,1776415629358,-151.0,8.46e-05,2]
[420645557,1776415629386,-459.31145841,8.462e-05,2]
[420645558,1776415629414,-389.68854159,8.462e-05,2]
[420645559,1776415780763,291.26,8.297e-05,2]
[420645561,1776415812940,157.0,8.297e-05,3]
[420645583,1776415831655,-1000.0,8.338e-05,2]
[420645585,1776415831665,-1200.0,8.338e-05,2]
[420645587,1776415831674,-258.0,8.338e-05,2]
[420645589,1776415831683,-600.63601826,8.339e-05,2]
[420645593,1776415831715,-393.653476,8.339e-05,2]
[420645596,1776415831726,-286009.18520574,8.339e-05,2]
[420645598,1776415831736,-7629.85,8.363e-05,2]
[420645599,1776415831746,-234920.7929319,8.443e-05,2]
[420645600,1776415831754,-150.0,8.461e-05,2]
[420645601,1776415831764,-260.0,8.461e-05,2]
[420645602,1776415831774,-500.0000009,8.462e-05,2]
[420645603,1776415831784,-110.31145841,8.462e-05,2]
[420645604,1776415831793,-500.0,8.462e-05,2]
[420645605,1776415831803,-500.0,8.462e-05,2]
[420645606,1776415831812,-197.0795029,8.462e-05,2]
[420645607,1776415831822,-500.0,8.462e-05,2]
[420645608,1776415831831,-500.0,8.462e-05,2]
[420645609,1776415831841,-500.0,8.462e-05,2]
[420645610,1776415831851,-500.0,8.462e-05,2]
[420645611,1776415831860,-500.0,8.462e-05,2]
[420645612,1776415831869,-500.0,8.462e-05,2]
[420645613,1776415831878,-500.0,8.462e-05,2]
[420645614,1776415831887,-500.0,8.462e-05,2]
[420645615,1776415831897,-500.0,8.462e-05,2]
[420645616,1776415831906,-500.0,8.462e-05,2]
[420645617,1776415831915,-500.0,8.462e-05,2]
[420645618,1776415831924,-500.0,8.462e-05,2]
[420645619,1776415831934,-500.0,8.462e-05,2]
[420645620,1776415831943,-200.0,8.463e-05,2]
[420645621,1776415831953,-342.253411,8.463e-05,2]
[420645622,1776415831963,-1026.87548062,8.466e-05,2]
[420645623,1776415831972,-284.65101063,8.466e-05,2]
[420645624,1776415831982,-578.20924308,8.478e-05,2]
[420645625,1776415831993,-1280.88388878,8.478e-05,2]
[420645626,1776415832002,-200.0,8.478e-05,2]
[420645627,1776415832012,-646.65982734,8.478e-05,2]
[420645628,1776415832022,-500.0,8.478e-05,2]
[420645629,1776415832032,-500.0,8.478e-05,2]
[420645630,1776415832041,-500.0,8.478e-05,2]
[420645631,1776415832050,-500.0,8.478e-05,2]
[420645632,1776415832060,-743.50770149,8.478e-05,2]
[420645633,1776415832069,-500.0,8.478e-05,2]
[420645634,1776415832079,-500.0,8.478e-05,2]
[420645635,1776415832089,-174.61919141,8.478e-05,2]
[420645636,1776415832098,-500.0,8.478e-05,2]
[420645637,1776415832108,-151.0,8.478e-05,2]
[420645638,1776415832117,-500.0,8.478e-05,2]
[420645639,1776415832127,-500.0,8.478e-05,2]
[420645640,1776415832137,-235.75327197,8.478e-05,2]
[420645641,1776415832147,-621.78829552,8.478e-05,2]
[420645642,1776415832157,-279.9045709,8.478e-05,2]
[420645643,1776415832167,-151.0,8.533e-05,2]
[420645644,1776415832177,-400.0,8.692e-05,7]
[420645645,1776415832186,-520.15,8.736e-05,2]
[420645646,1776415832196,-500.0,8.739e-05,2]
[420645647,1776415832206,-166.82,8.739e-05,2]
[420645648,1776415832216,-262.55896989,8.757e-05,2]
[420645649,1776415832225,-250.0,8.757e-05,2]
[420645650,1776415832234,-234.39,8.76e-05,7]
[420645651,1776415832245,-301.35,8.769e-05,7]
[420645652,1776415832254,-151.0,8.894e-05,2]
[420645653,1776415832263,-1808.2687837,8.897e-05,2]
[420645654,1776415832272,-3622.0,8.9e-05,2]
[420645655,1776415832281,-1800.0,8.9e-05,3]
[420645656,1776415832290,-5411.58022302,8.993e-05,2]
[420645657,1776415832300,-7293.83681339,8.995e-05,2]
[420645658,1776415832309,-3600.0,9e-05,3]
[420645659,1776415832318,-161.0,9e-05,3]
[420645660,1776415832328,-151.0,9.007e-05,2]
[420645661,1776415832338,-153.66832047,9.007e-05,2]
[420645662,1776415832347,-38213.14663492,9.01e-05,2]
[420645663,1776415832360,-24633.6280205,9.01e-05,2]
[420645664,1776415832369,-520.15,9.01e-05,2]
[420645665,1776415832379,-500.0,9.013e-05,2]
[420645666,1776415832390,-1472.6645801,9.024e-05,2]
[420645667,1776415832400,-3311.4999481,9.024e-05,2]
[420645668,1776415832410,-345.2989279,9.025e-05,2]
[420645669,1776415832419,-23772.8749968,9.025e-05,2]
[420645670,1776415832429,-1328.27659266,9.026e-05,2]
[420645671,1776415832439,-201.30418957,9.026e-05,2]
[420645672,1776415832448,-834.86527717,9.026e-05,2]
[420645673,1776415832458,-181.08010149,9.026e-05,2]
[420645674,1776415832467,-375.86142929,9.026e-05,2]
[420645675,1776415832476,-200.0,9.036e-05,2]
[420645676,1776415832487,-200.0,9.036e-05,2]
[420645677,1776415832497,-200.0,9.036e-05,2]
[420645678,1776415832507,-200.0,9.036e-05,2]
[420645679,1776415832517,-200.0,9.036e-05,2]
[420645680,1776415832527,-200.0,9.036e-05,2]
[420645681,1776415832536,-200.0,9.036e-05,2]
[420645682,1776415832546,-200.0,9.036e-05,2]
[420645683,1776415832555,-200.0,9.036e-05,2]
[420645684,1776415832564,-200.0,9.036e-05,2]
[420645685,1776415832574,-17501.09258461,9.058e-05,2]
[420645686,1776415832586,-12498.90741539,9.058e-05,2]
[420645688,1776415832595,-501.97819471,9.073e-05,2]
[420645690,1776415832606,-500.0,9.073e-05,2]
[420645692,1776415832614,-500.0,9.073e-05,2]
[420645694,1776415832624,-500.0,9.073e-05,2]
[420645696,1776415832633,-500.0,9.073e-05,2]
[420645698,1776415832642,-500.0,9.073e-05,2]
[420645700,1776415832651,-500.20553032,9.073e-05,2]
[420645702,1776415832661,-500.0,9.073e-05,2]
[420645704,1776415832669,-160.16401396,9.073e-05,2]
[420645706,1776415832679,-500.0,9.073e-05,2]
[420645708,1776415832688,-500.0,9.073e-05,2]
[420645710,1776415832697,-231.44,9.092e-05,7]
[420645712,1776415832706,-150.0,9.096e-05,2]
[420645715,1776415832717,-1096.9126958,9.099e-05,3]
[420645717,1776415832727,-155.0,9.099e-05,2]
[420645719,1776415832737,-806.0,9.1e-05,5]
[420645721,1776415832746,-250.0,9.1e-05,2]
[420645722,1776415832755,-118685.31080773,9.1e-05,2]
[420645723,1776415832767,-218046.54102647,9.1e-05,2]
[420645724,1776415832781,-464.72178409,9.1e-05,2]
[420645725,1776415832793,-303.72702952,9.1e-05,2]
[420645726,1776415832811,-2287.51677326,9.1e-05,2]
[420645727,1776415832824,-250.0,9.1e-05,2]
[420645728,1776415832840,-471.84604647,9.1e-05,2]
[420645729,1776415832853,-3778.7015311,9.1e-05,2]
[420645730,1776415832865,-818.42572312,9.1e-05,2]
[420645731,1776415832903,-1363.9028499,9.1e-05,2]
[420645732,1776415832915,-1248.86929294,9.1e-05,2]
[420645733,1776415832931,-7479.86836957,9.1e-05,2]
[420645734,1776415832947,-1251.8382809,9.1e-05,2]
[420645735,1776415832959,-673.97872682,9.1e-05,2]
[420645743,1776415837760,-500.0,8.462e-05,2]
[420645744,1776415837770,-4762.04689355,9.1e-05,2]
[420645751,1776415838469,-668.11,9.1e-05,2]
[420645754,1776415838480,-282.88420702,9.1e-05,2]
[420645759,1776415838512,-1221.80961954,9.1e-05,2]
[420645762,1776415838533,-53136.51325325,9.1e-05,2]
[420645764,1776415838545,-42357.35242812,9.1e-05,2]
[420645766,1776415838556,-22455.3758884,9.1e-05,2]
[420645768,1776415838568,-482.84685167,9.1e-05,2]
[420645783,1776415839925,-143.40405999,9.1e-05,2]
[420645784,1776415839939,-13141.12926979,9.1e-05,2]
[420645785,1776415839956,-14029.80278619,9.1e-05,2]
[420645786,1776415839968,-13115.82671677,9.1e-05,2]
[420645787,1776415840006,-788.50553814,9.1e-05,2]
[420645788,1776415840018,-11005.49012588,9.1e-05,2]
[420645789,1776415840906,-46.59259849,9.1e-05,2]
[420645790,1776415840924,-3963.85509281,9.1e-05,2]
[420645791,1776415841025,-460.46515529,8.462e-05,2]
[420645792,1776415841035,-15037.5052019,9.1e-05,2]
[420645793,1776415841116,-875.16805679,9.1e-05,2]
[420645814,1776415845951,-387.79,9.055e-05,2]
[420645815,1776415845962,-4975.17670894,9.1e-05,2]
[420645840,1776415848726,-27199.42105982,9.1e-05,2]
[420645841,1776415848736,-167902.94989106,9.1e-05,2]
[420645842,1776415848749,-35949.82645834,9.1e-05,2]
[420645843,1776415848759,-97149.32411193,9.1e-05,2]
[420645844,1776415848768,-230.276631,9.1e-05,2]
[420645845,1776415848778,-151.0,9.1e-05,2]
[420645846,1776415848789,-151.0,9.1e-05,2]
[420645847,1776415848799,-151.0,9.1e-05,2]
[420645848,1776415848808,-151.0,9.1e-05,2]
[420645849,1776415848818,-151.0,9.1e-05,2]
[420645850,1776415848827,-151.0,9.1e-05,2]
[420645851,1776415848836,-172.473845,9.1e-05,2]
[420645852,1776415848846,-151.0,9.1e-05,2]
[420645853,1776415848855,-151.0,9.1e-05,2]
[420645854,1776415848865,-151.0,9.1e-05,2]
[420645855,1776415848875,-151.0,9.1e-05,2]
[420645856,1776415848884,-151.0,9.1e-05,2]
[420645857,1776415848894,-192.074026,9.1e-05,2]
[420645858,1776415848904,-1121.926964,9.1e-05,2]
[420645859,1776415848914,-1121.926964,9.1e-05,2]
[420645860,1776415848923,-1121.926964,9.1e-05,2]
[420645861,1776415848933,-1121.926964,9.1e-05,2]
[420645862,1776415848942,-1121.926964,9.1e-05,2]
[420645863,1776415848952,-1121.926964,9.1e-05,2]
[420645864,1776415848963,-1121.926964,9.1e-05,2]
[420645865,1776415848973,-1121.926964,9.1e-05,2]
[420645866,1776415848982,-1121.926964,9.1e-05,2]
[420645867,1776415848993,-1121.926964,9.1e-05,2]
[420645868,1776415849002,-1121.926964,9.1e-05,2]
[420645869,1776415849012,-1121.926964,9.1e-05,2]
[420645870,1776415849022,-1001.787014,9.1e-05,2]
[420645871,1776415849032,-1001.787014,9.1e-05,2]
[420645872,1776415849042,-1001.787014,9.1e-05,2]
[420645873,1776415849052,-1001.787014,9.1e-05,2]
[420645874,1776415849062,-1001.787014,9.1e-05,2]
[420645875,1776415849072,-1001.787014,9.1e-05,2]
[420645876,1776415849081,-1001.787014,9.1e-05,2]
[420645877,1776415849091,-1001.787014,9.1e-05,2]
[420645878,1776415849100,-1001.787014,9.1e-05,2]